bitfinex-derivatives/quotes_BTCF0:USTF0_20241103
["timestamp","ask_amount","ask_price","bid_price","bid_amount"]
[1730649423982,0.3608,68136.0,68131.0,0.033]
[1730649424285,0.073406,68138.0,68135.0,0.073409]
[1730649424676,0.02334736,68141.0,68132.0,0.0329]
[1730649425076,0.02334736,68141.0,68133.0,0.073411]
[1730649425276,0.09675036,68141.0,68132.0,0.0329]
[1730649425477,0.09675036,68141.0,68136.0,0.073408]
[1730649425777,0.007,68138.0,68136.0,0.073408]
[1730649425977,0.007,68138.0,68135.0,0.001]
[1730649426174,0.073408,68136.0,68135.0,0.001]
[1730649426484,0.3608,68140.0,68133.0,0.073411]
[1730649427387,0.03034736,68141.0,68136.0,0.073407]
[1730649427687,0.03034736,68141.0,68137.0,0.073406]
[1730649427991,0.02334736,68141.0,68137.0,0.073406]
[1730649428185,0.00220262,68141.0,68137.0,0.073406]
[1730649428976,0.00920262,68141.0,68137.0,0.074406]
[1730649429581,0.00920262,68141.0,68137.0,0.001]
[1730649430082,0.073406,68139.0,68137.0,0.001]
[1730649431291,0.007,68139.0,68137.0,0.001]
[1730649434086,0.434206,68138.0,68137.0,0.001]
[1730649434690,0.007,68139.0,68137.0,0.001]
[1730649434993,0.007,68139.0,68138.0,0.073406]
[1730649435300,0.00220262,68141.0,68138.0,0.073406]
[1730649435595,0.00220262,68141.0,68131.0,0.3938]
[1730649435596,0.00220262,68141.0,68140.0,0.073404]
[1730649438299,0.00920262,68141.0,68140.0,0.001]
[1730649440397,0.00920262,68141.0,68140.0,0.074404]
[1730649441091,0.00920262,68141.0,68140.0,0.001]
[1730649442391,0.08260462,68141.0,68140.0,0.001]
[1730649443294,0.00920262,68141.0,68140.0,0.001]
[1730649443896,0.00920262,68141.0,68140.0,0.074404]
[1730649446701,0.00920262,68141.0,68140.0,0.514684]
[1730649447095,0.00920262,68141.0,68140.0,0.074404]
[1730649451502,0.00920262,68141.0,68140.0,0.514684]
[1730649452103,0.007,68141.0,68140.0,0.514684]
[1730649452303,0.007,68141.0,68140.0,0.074404]
[1730649453693,0.007,68141.0,68140.0,0.073404]
[1730649453894,0.006,68141.0,68140.0,0.074404]
[1730649456105,0.02096464,68143.0,68140.0,0.074404]
[1730649456301,0.073391,68152.0,68140.0,0.074404]
[1730649456497,0.073397,68146.0,68141.0,0.073402]
[1730649457004,0.44024,68145.0,68130.0,0.04326289]
[1730649457202,0.073412,68132.0,68131.0,0.3608]
[1730649457505,0.073426,68119.0,68118.0,0.0312]
[1730649458601,0.07343,68115.0,68114.0,0.0022021]
[1730649458904,0.43423,68115.0,68114.0,0.0022021]
[1730649460510,0.3608,68115.0,68114.0,0.0022021]
[1730649460902,0.50352,68115.0,68114.0,0.0022021]
[1730649461103,0.50352,68115.0,68114.0,0.0756341]
[1730649461404,0.3628,68115.0,68114.0,0.0756341]
[1730649461605,0.002,68115.0,68114.0,0.0756341]
[1730649462103,0.14072,68133.0,68114.0,0.76853132]
[1730649462413,0.3608,68145.0,68130.0,0.073414]
[1730649462414,0.55208,68136.0,68130.0,0.073414]
[1730649462614,0.14072,68136.0,68132.0,0.073412]
[1730649463212,0.14072,68136.0,68118.0,0.3608]
[1730649463213,0.14072,68136.0,68133.0,0.073411]
[1730649463402,0.3608,68138.0,68133.0,0.073411]
[1730649463600,0.50152,68138.0,68133.0,0.073411]
[1730649464004,0.3608,68138.0,68133.0,0.073411]
[1730649464321,0.3608,68138.0,68137.0,0.073407]
[1730649467507,0.073407,68138.0,68134.0,0.0322]
[1730649467704,0.434198,68145.0,68138.0,0.073405]
[1730649468612,0.3608,68145.0,68138.0,0.073405]
[1730649468815,0.073399,68144.0,68138.0,0.073405]
[1730649470013,0.3648,68145.0,68139.0,0.073405]
[1730649470513,0.3648,68145.0,68134.0,0.0322]
[1730649470811,0.3608,68145.0,68143.0,0.073399]
[1730649471015,0.003,68144.0,68143.0,0.073399]
[1730649471719,0.02106921,68145.0,68143.0,0.073399]
[1730649472100,0.02106921,68145.0,68139.0,0.3608]
[1730649472300,0.02106921,68145.0,68143.0,0.0734]
[1730649473105,0.02106921,68145.0,68144.0,0.073399]
[1730649474113,0.02506921,68145.0,68144.0,0.073399]
[1730649474722,0.13504,68150.0,68149.0,0.073394]
[1730649475020,0.49584,68152.0,68149.0,0.073394]
[1730649476720,0.073397,68147.0,68139.0,0.3608]
[1730649476915,0.3608,68145.0,68139.0,0.3608]
[1730649477117,0.3608,68145.0,68140.0,0.073403]
[1730649477619,0.434199,68145.0,68139.0,0.3608]
[1730649477815,0.3608,68145.0,68139.0,0.3608]
[1730649478321,0.073402,68141.0,68139.0,0.3608]
[1730649478709,0.3648,68145.0,68139.0,0.3608]
[1730649478917,0.438198,68145.0,68139.0,0.3608]
[1730649479110,0.438198,68145.0,68136.0,0.073408]
[1730649479314,0.38630036,68145.0,68136.0,0.073408]
[1730649479524,0.073403,68141.0,68124.0,0.44964518]
[1730649479717,0.38630036,68145.0,68124.0,0.44964518]
[1730649479919,0.45969936,68145.0,68136.0,0.073407]
[1730649480114,0.45569936,68145.0,68136.0,0.073407]
[1730649480425,0.004,68141.0,68124.0,0.44964518]
[1730649480807,0.004,68141.0,68138.0,0.073406]
[1730649481012,0.073399,68144.0,68134.0,0.10561]
[1730649481523,0.073399,68144.0,68134.0,0.0322]
[1730649481819,0.38230036,68145.0,68134.0,0.0322]
[1730649482118,0.51734036,68145.0,68142.0,0.073401]
[1730649482324,0.51734036,68145.0,68143.0,0.0734]
[1730649482812,0.15654036,68145.0,68144.0,0.073399]
[1730649483424,0.001,68144.0,68134.0,0.0322]
[1730649483612,0.073409,68135.0,68134.0,0.0322]
[1730649483810,0.3608,68137.0,68124.0,0.39466]
[1730649484024,0.3608,68125.0,68122.0,0.0321]
[1730649486316,0.3608,68125.0,68122.0,0.0461]
[1730649486819,0.13504,68128.0,68124.0,0.073421]
[1730649487318,0.3608,68131.0,68128.0,0.073416]
[1730649487618,0.3608,68131.0,68122.0,0.0461]
[1730649488021,0.13504,68133.0,68122.0,0.0461]
[1730649488222,0.15617476,68133.0,68122.0,0.0461]
[1730649488421,0.13504,68133.0,68122.0,0.0461]
[1730649488626,0.13504,68133.0,68130.0,0.073414]
[1730649489525,0.3608,68138.0,68134.0,0.073409]
[1730649489722,0.3608,68138.0,68125.0,0.3608]
[1730649489927,0.3608,68138.0,68136.0,0.073408]
[1730649490723,0.073404,68140.0,68136.0,0.073408]
[1730649490926,0.02157523,68140.0,68136.0,0.073407]
[1730649491129,0.001,68138.0,68135.0,0.073409]
[1730649491319,0.001,68138.0,68132.0,0.0317]
[1730649491628,0.001,68138.0,68136.0,0.073407]
[1730649492631,0.073413,68131.0,68125.0,0.073419]
[1730649492926,0.3608,68130.0,68125.0,0.073419]
[1730649493117,0.434215,68130.0,68123.0,0.073422]
[1730649493523,0.434215,68130.0,68118.0,0.04339264]
[1730649493733,0.434215,68130.0,68124.0,0.073421]
[1730649494029,0.3608,68130.0,68118.0,0.04339264]
[1730649494238,0.3608,68130.0,68126.0,0.073418]
[1730649495927,0.3608,68130.0,68124.0,0.008]
[1730649496522,0.3608,68130.0,68124.0,0.07342]
[1730649496723,0.3608,68130.0,68126.0,0.006]
[1730649497441,0.3608,68130.0,68124.0,0.08142]
[1730649497819,0.38193241,68130.0,68124.0,0.08142]
[1730649498028,0.38193241,68130.0,68124.0,0.008]
[1730649498233,0.07342,68126.0,68119.0,0.434226]
[1730649498431,0.13508,68126.0,68119.0,0.435106]
[1730649498628,0.07342,68125.0,68119.0,0.435106]
[1730649499425,0.13508,68126.0,68119.0,0.36168]
[1730649499633,0.13508,68126.0,68120.0,0.073424]
[1730649499835,0.208499,68126.0,68120.0,0.073424]
[1730649500033,0.434222,68123.0,68115.0,0.0628]
[1730649500231,0.38193241,68130.0,68118.0,0.3608]
[1730649500437,0.3608,68137.0,68125.0,0.07342]
[1730649500644,0.0216273,68137.0,68136.0,0.073408]
[1730649500937,0.0216273,68137.0,68131.0,0.3608]
[1730649500938,0.073401,68143.0,68131.0,0.3608]
[1730649501137,0.208481,68143.0,68136.0,0.073407]
[1730649501343,0.3608,68138.0,68136.0,0.073407]
[1730649502336,0.3608,68138.0,68137.0,0.073407]
[1730649502727,0.02796235,68140.0,68139.0,0.073405]
[1730649503539,0.02396235,68140.0,68139.0,0.073405]
[1730649505238,0.02596235,68140.0,68139.0,0.073405]
[1730649506738,0.09936635,68140.0,68132.0,0.0632]
[1730649507039,0.3608,68133.0,68122.0,0.0321]
[1730649507231,0.3608,68127.0,68118.0,0.3608]
[1730649507433,0.3608,68119.0,68114.0,0.0022021]
[1730649507637,0.07343,68115.0,68114.0,0.0022021]
[1730649508936,0.07543,68115.0,68114.0,0.0022021]
[1730649510034,0.002,68115.0,68108.0,0.0316]
[1730649510239,0.13412,68115.0,68113.0,0.073432]
[1730649510430,0.13212,68117.0,68114.0,0.073432]
[1730649510626,0.13212,68117.0,68114.0,0.074432]
[1730649510627,0.004,68115.0,68114.0,0.074432]
[1730649511237,0.004,68115.0,68108.0,0.0316]
[1730649511238,0.00104001,68119.0,68118.0,0.073427]
[1730649511541,0.13212,68124.0,68118.0,0.073427]
[1730649511745,0.13212,68124.0,68120.0,0.073424]
[1730649511947,0.13212,68124.0,68121.0,0.073423]
[1730649512830,0.13212,68124.0,68110.0,0.3608]
[1730649512831,0.13212,68124.0,68111.0,0.073434]
[1730649513032,0.15386176,68126.0,68125.0,0.07342]
[1730649513233,0.13212,68126.0,68125.0,0.07342]
[1730649513433,0.13212,68126.0,68112.0,0.073433]
[1730649513434,0.3608,68128.0,68127.0,0.073418]
[1730649513942,0.485729,68135.0,68118.0,0.073427]
[1730649514148,0.3608,68136.0,68124.0,0.073421]
[1730649514445,0.3608,68136.0,68135.0,0.073409]
[1730649515336,0.3608,68142.0,68126.0,0.073418]
[1730649515549,0.3608,68142.0,68139.0,0.073405]
[1730649515847,0.02126564,68141.0,68140.0,0.073404]
[1730649516051,0.073396,68147.0,68136.0,0.033]
[1730649516272,0.13212,68149.0,68148.0,0.073395]
[1730649516552,0.3608,68156.0,68148.0,0.073395]
[1730649516553,0.3608,68150.0,68148.0,0.073395]
[1730649516844,0.3608,68150.0,68136.0,0.033]
[1730649516845,0.3608,68149.0,68145.0,0.073398]
[1730649517041,0.3608,68149.0,68136.0,0.033]
[1730649517042,0.3608,68149.0,68147.0,0.073396]
[1730649517241,0.205512,68152.0,68147.0,0.073396]
[1730649517446,0.13212,68152.0,68147.0,0.073396]
[1730649517644,0.005,68149.0,68148.0,0.001]
[1730649518033,0.3658,68149.0,68148.0,0.001]
[1730649518533,0.3608,68149.0,68147.0,0.001]
[1730649519333,0.3608,68149.0,68147.0,0.074396]
[1730649519547,0.3608,68149.0,68148.0,0.073395]
[1730649520247,0.005,68152.0,68151.0,0.073392]
[1730649520649,0.00220153,68160.0,68159.0,0.073383]
[1730649523058,0.00320153,68160.0,68159.0,0.074383]
[1730649524551,0.566251,68171.0,68164.0,0.073378]
[1730649524552,0.3608,68171.0,68164.0,0.073378]
[1730649524744,0.3608,68171.0,68170.0,0.073371]
[1730649524943,0.073361,68180.0,68177.0,0.073364]
[1730649525247,0.02129641,68178.0,68177.0,0.073364]
[1730649525449,0.205438,68183.0,68169.0,0.3608]
[1730649525642,0.205438,68183.0,68179.0,0.073361]
[1730649526054,0.22698899,68183.0,68179.0,0.073361]
[1730649526263,0.15363099,68183.0,68170.0,0.073371]
[1730649526646,0.02155099,68183.0,68171.0,0.07337]
[1730649526946,0.07555586,68185.0,68180.0,0.07336]
[1730649527743,0.07555586,68185.0,68184.0,0.073356]
[1730649527744,0.02365979,68185.0,68184.0,0.073356]
[1730649530750,0.02365979,68185.0,68184.0,0.074356]
[1730649533758,0.00220086,68185.0,68184.0,0.074356]
[1730649534548,0.02129746,68189.0,68184.0,0.001]
[1730649534754,0.434155,68185.0,68184.0,0.001]
[1730649535158,0.3608,68185.0,68184.0,0.001]
[1730649535365,0.434155,68185.0,68184.0,0.001]
[1730649535658,0.874155,68185.0,68184.0,0.001]
[1730649536156,0.874155,68185.0,68170.0,0.073371]
[1730649536157,0.073364,68177.0,68170.0,0.073371]
[1730649536353,0.8008,68185.0,68170.0,0.073371]
[1730649536354,0.073366,68175.0,68170.0,0.073371]
[1730649536755,0.073366,68175.0,68169.0,0.0313]
[1730649536756,0.3608,68176.0,68169.0,0.0313]
[1730649537059,0.3608,68176.0,68150.0,0.1258]
[1730649537060,0.3608,68170.0,68157.0,0.03]
[1730649537259,0.073374,68167.0,68157.0,0.0313]
[1730649537467,0.199174,68167.0,68161.0,0.07338]
[1730649538461,0.199174,68167.0,68157.0,0.0313]
[1730649538663,0.14762872,68167.0,68162.0,0.07338]
[1730649539457,0.14762872,68167.0,68158.0,0.073384]
[1730649539658,0.22100272,68167.0,68158.0,0.073384]
[1730649539860,0.22100272,68167.0,68157.0,0.0313]
[1730649540364,0.22100272,68167.0,68161.0,0.3608]
[1730649540365,0.14762872,68167.0,68161.0,0.3608]
[1730649541157,0.14762872,68167.0,68162.0,0.073379]
[1730649541360,0.02182872,68167.0,68162.0,0.073379]
[1730649541554,0.1258,68168.0,68162.0,0.073379]
[1730649541964,0.1258,68168.0,68166.0,0.001]
[1730649542366,0.434174,68167.0,68166.0,0.001]
[1730649542764,0.073379,68163.0,68157.0,0.0313]
[1730649542970,0.3608,68158.0,68157.0,0.0313]
[1730649543262,0.3608,68158.0,68157.0,0.104685]
[1730649543462,0.3608,68167.0,68159.0,0.073382]
[1730649543664,0.3608,68167.0,68166.0,0.001]
[1730649543867,0.48664,68167.0,68166.0,0.001]
[1730649544167,0.3608,68167.0,68166.0,0.074376]
[1730649544572,0.0217431,68169.0,68166.0,0.074376]
[1730649544754,0.3608,68170.0,68166.0,0.001]
[1730649544959,0.3608,68170.0,68168.0,0.073373]
[1730649545159,0.3608,68170.0,68169.0,0.073372]
[1730649545469,0.02363858,68173.0,68172.0,0.073369]
[1730649549265,0.02363858,68173.0,68172.0,0.074369]
[1730649549464,0.02363858,68173.0,68172.0,0.001]
[1730649550059,0.02363858,68173.0,68168.0,0.073372]
[1730649551377,0.07337,68171.0,68161.0,0.43418]
[1730649551573,0.3608,68167.0,68162.0,0.07338]
[1730649551774,0.3608,68167.0,68164.0,0.073377]
[1730649552076,0.02363858,68173.0,68172.0,0.001]
[1730649552377,0.07058429,68173.0,68172.0,0.001]
[1730649552769,0.02363858,68173.0,68169.0,0.073372]
[1730649552973,0.02363858,68173.0,68162.0,0.003]
[1730649553175,0.02363858,68173.0,68172.0,0.073369]
[1730649554974,0.00220107,68173.0,68172.0,0.073369]
[1730649556063,0.02168438,68177.0,68176.0,0.073365]
[1730649556269,0.12584,68182.0,68169.0,0.434171]
[1730649556470,0.12584,68182.0,68180.0,0.07336]
[1730649556673,0.14730813,68182.0,68181.0,0.033]
[1730649556877,0.14730813,68182.0,68181.0,0.106359]
[1730649557178,0.3608,68194.0,68192.0,0.073347]
[1730649557385,0.00220047,68199.0,68183.0,0.3608]
[1730649557568,0.00220047,68199.0,68195.0,0.073344]
[1730649557569,0.1258,68197.0,68195.0,0.073344]
[1730649557772,0.1258,68197.0,68196.0,0.073343]
[1730649557966,0.1258,68197.0,68183.0,0.3608]
[1730649557967,0.17400921,68197.0,68194.0,0.073345]
[1730649558169,0.3608,68196.0,68194.0,0.073344]
[1730649558373,0.3608,68196.0,68183.0,0.3608]
[1730649558680,0.3608,68190.0,68187.0,0.073353]
[1730649559471,0.3608,68190.0,68189.0,0.073351]
[1730649560478,0.3608,68190.0,68182.0,0.062]
[1730649560479,0.80076,68190.0,68166.0,0.0022002]
[1730649560680,0.80076,68190.0,68171.0,0.0328]
[1730649560681,0.3608,68182.0,68171.0,0.0328]
[1730649560988,0.1258,68182.0,68181.0,0.073359]
[1730649561181,0.1258,68182.0,68171.0,0.0328]
[1730649561182,0.1258,68182.0,68174.0,0.073366]
[1730649562484,0.073357,68183.0,68174.0,0.073366]
[1730649562485,0.3608,68175.0,68174.0,0.073366]
[1730649562787,0.3608,68175.0,68171.0,0.0338]
[1730649562993,0.3827029,68175.0,68171.0,0.0338]
[1730649563877,0.3827029,68175.0,68171.0,0.0328]
[1730649564081,0.3827029,68175.0,68174.0,0.001]
[1730649564787,0.3827029,68175.0,68171.0,0.0328]
[1730649565275,0.3827029,68175.0,68174.0,0.073367]
[1730649566688,0.3608,68184.0,68181.0,0.073359]
[1730649566985,0.3608,68184.0,68171.0,0.3936]
[1730649566986,0.45546375,68184.0,68171.0,0.46697]
[1730649567484,0.17112579,68183.0,68171.0,0.46697]
[1730649567687,0.12328,68183.0,68171.0,0.46697]
[1730649567984,0.3608,68175.0,68171.0,0.0328]
[1730649568986,0.3608,68175.0,68171.0,0.0338]
[1730649569386,0.12328,68183.0,68171.0,0.0338]
[1730649569585,0.3608,68175.0,68173.0,0.073367]
[1730649571279,0.3608,68175.0,68171.0,0.0328]
[1730649572378,0.3608,68175.0,68171.0,0.10617]
[1730649572581,0.3608,68175.0,68171.0,0.0328]
[1730649572991,0.3608,68175.0,68173.0,0.073368]
[1730649573290,0.38215332,68175.0,68173.0,0.073368]
[1730649573599,0.3608,68184.0,68171.0,0.3936]
[1730649573785,0.3608,68184.0,68183.0,0.073357]
[1730649575095,0.3608,68184.0,68171.0,0.3936]
[1730649575301,0.3608,68184.0,68177.0,0.073363]
[1730649575483,0.12328,68186.0,68177.0,0.073363]
[1730649576499,0.09426434,68188.0,68177.0,0.073363]
[1730649576695,0.12328,68186.0,68177.0,0.073363]
[1730649576893,0.3608,68184.0,68173.0,0.073367]
[1730649577799,0.434156,68184.0,68173.0,0.073367]
[1730649578898,0.04781921,68183.0,68173.0,0.073367]
[1730649579100,0.435156,68184.0,68173.0,0.073367]
[1730649579401,0.04782181,68183.0,68171.0,0.0328]
[1730649579596,0.0476981,68182.0,68171.0,0.0328]
[1730649579797,0.3608,68174.0,68171.0,0.0328]
[1730649580487,0.12328,68173.0,68171.0,0.0328]
[1730649584398,0.3608,68172.0,68171.0,0.0328]
[1730649585114,0.40817633,68172.0,68161.0,0.3929]
[1730649585396,0.073373,68169.0,68161.0,0.3608]
[1730649585601,0.3608,68162.0,68159.0,0.105583]
[1730649586494,0.3608,68165.0,68159.0,0.0322]
[1730649586807,0.12328,68164.0,68163.0,0.073378]
[1730649587304,0.3608,68165.0,68161.0,0.001]
[1730649587501,0.43418,68162.0,68161.0,0.001]
[1730649587797,0.56403261,68162.0,68161.0,0.001]
[1730649588105,0.073387,68156.0,68145.0,0.104497]
[1730649588405,0.3608,68150.0,68145.0,0.104497]
[1730649588700,0.3608,68150.0,68148.0,0.073394]
[1730649591295,0.3608,68150.0,68148.0,0.074394]
[1730649591703,0.3608,68150.0,68149.0,0.073394]
[1730649593096,0.3608,68150.0,68148.0,0.001]
[1730649593505,0.3608,68150.0,68146.0,0.073396]
[1730649593803,0.3608,68150.0,68149.0,0.001]
[1730649594199,0.3608,68154.0,68149.0,0.001]
[1730649594597,0.3608,68154.0,68148.0,0.001]
[1730649596206,0.07339,68153.0,68148.0,0.001]
[1730649596895,0.07339,68153.0,68145.0,0.0311]
[1730649597498,0.073391,68152.0,68144.0,0.073398]
[1730649597704,0.073391,68152.0,68144.0,0.103498]
[1730649598107,0.3608,68154.0,68143.0,0.3608]
[1730649598309,0.073398,68146.0,68136.0,0.105007]
[1730649598521,0.3608,68141.0,68136.0,0.105007]
[1730649598805,0.3608,68141.0,68136.0,0.0316]
[1730649599010,0.434206,68138.0,68136.0,0.0316]
[1730649600911,0.3608,68138.0,68136.0,0.0456]
[1730649601294,0.3608,68138.0,68123.0,0.0317]
[1730649601502,0.3608,68128.0,68123.0,0.0317]
[1730649601706,0.3608,68128.0,68124.0,0.0319]
[1730649601904,0.12056,68127.0,68124.0,0.0319]
[1730649603512,0.193978,68127.0,68124.0,0.0319]
[1730649603711,0.12056,68127.0,68124.0,0.0319]
[1730649603895,0.12056,68126.0,68124.0,0.0319]
[1730649604305,0.3608,68128.0,68124.0,0.0319]
[1730649604508,0.3608,68128.0,68123.0,0.014]
[1730649604702,0.3608,68128.0,68118.0,0.03]
[1730649605208,0.1206,68127.0,68118.0,0.03]
[1730649605414,0.3608,68134.0,68118.0,0.03]
[1730649605711,0.1206,68126.0,68124.0,0.07442]
[1730649606819,0.3628,68128.0,68124.0,0.001]
[1730649607008,0.1206,68127.0,68126.0,0.073419]
[1730649607208,0.1216,68127.0,68126.0,0.073419]
[1730649607614,0.001,68127.0,68126.0,0.073419]
[1730649607807,0.1216,68127.0,68126.0,0.073419]
[1730649608005,0.001,68127.0,68126.0,0.073419]
[1730649608211,0.001,68127.0,68118.0,0.03]
[1730649608420,0.073421,68124.0,68118.0,0.03]
[1730649608613,0.073426,68119.0,68118.0,0.03]
[1730649609115,0.3608,68119.0,68108.0,0.073438]
[1730649609320,0.3608,68119.0,68110.0,0.0304]
[1730649609507,0.1206,68118.0,68110.0,0.0304]
[1730649609815,0.1206,68117.0,68110.0,0.0304]
[1730649610222,0.073431,68115.0,68110.0,0.0304]
[1730649610421,0.1206,68117.0,68110.0,0.0304]
[1730649610917,0.1206,68117.0,68112.0,0.073434]
[1730649611111,0.1216,68117.0,68112.0,0.073434]
[1730649611320,0.073433,68114.0,68110.0,0.0304]
[1730649611818,0.80124,68113.0,68099.0,0.3608]
[1730649612012,0.073435,68111.0,68110.0,0.004]
[1730649612414,0.513915,68111.0,68110.0,0.004]
[1730649612916,0.1206,68111.0,68110.0,0.004]
[1730649613515,0.1206,68111.0,68107.0,0.073439]
[1730649613710,0.3608,68113.0,68107.0,0.073439]
[1730649613911,0.3608,68113.0,68099.0,0.3608]
[1730649614123,0.1206,68112.0,68103.0,0.073442]
[1730649614424,0.1206,68112.0,68099.0,0.3608]
[1730649614425,0.001,68111.0,68110.0,0.001]
[1730649615125,0.513915,68111.0,68097.0,0.3608]
[1730649615312,0.3608,68106.0,68103.0,0.001]
[1730649616413,0.3608,68113.0,68103.0,0.001]
[1730649616414,0.3608,68113.0,68112.0,0.073434]
[1730649616610,0.1206,68120.0,68112.0,0.073434]
[1730649616816,0.1206,68120.0,68104.0,0.3608]
[1730649617015,0.1206,68119.0,68104.0,0.3608]
[1730649617419,0.1206,68119.0,68118.0,0.073427]
[1730649617618,0.3608,68121.0,68120.0,0.073425]
[1730649618019,0.02151092,68131.0,68123.0,0.073422]
[1730649618329,0.3608,68132.0,68126.0,0.073418]
[1730649618330,0.12064,68130.0,68126.0,0.073418]
[1730649618527,0.12064,68130.0,68127.0,0.106017]
[1730649618721,0.3608,68132.0,68127.0,0.106017]
[1730649619029,0.12064,68131.0,68128.0,0.073416]
[1730649619422,0.12064,68131.0,68127.0,0.0326]
[1730649619615,0.38221688,68132.0,68127.0,0.0326]
[1730649620124,0.12064,68133.0,68127.0,0.0326]
[1730649620322,0.12064,68133.0,68131.0,0.073413]
[1730649620824,0.4814,68136.0,68131.0,0.073413]
[1730649621028,0.02133759,68134.0,68127.0,0.0326]
[1730649621228,0.07341,68135.0,68127.0,0.0326]
[1730649621529,0.4824,68136.0,68130.0,0.073414]
[1730649621837,0.001,68133.0,68130.0,0.073414]
[1730649622624,0.001,68133.0,68132.0,0.073412]
[1730649623424,0.001,68135.0,68128.0,0.0301]
[1730649623929,0.01,68133.0,68132.0,0.074412]
[1730649624433,0.01,68133.0,68132.0,0.083412]
[1730649624631,0.38209687,68136.0,68132.0,0.009]
[1730649624937,0.3608,68136.0,68135.0,0.073409]
[1730649625319,0.3608,68136.0,68133.0,0.0316]
[1730649625532,0.3608,68136.0,68128.0,0.0301]
[1730649625533,0.3608,68136.0,68130.0,0.073413]
[1730649625734,0.3608,68136.0,68131.0,0.073412]
[1730649626831,0.005,68133.0,68131.0,0.073412]
[1730649627227,0.3718,68136.0,68131.0,0.074412]
[1730649627528,0.3718,68136.0,68134.0,0.07341]
[1730649627920,0.3618,68136.0,68134.0,0.07341]
[1730649629346,0.3618,68136.0,68131.0,0.001]
[1730649629347,0.073409,68135.0,68131.0,0.001]
[1730649629629,0.073409,68135.0,68127.0,0.0326]
[1730649629630,0.073414,68131.0,68120.0,0.073425]
[1730649629833,0.3608,68125.0,68115.0,0.3608]
[1730649630032,0.073424,68121.0,68115.0,0.3608]
[1730649630236,0.073431,68115.0,68105.0,0.07344]
[1730649630438,0.3608,68111.0,68105.0,0.07344]
[1730649630637,0.11928,68110.0,68105.0,0.07344]
[1730649631026,0.11928,68110.0,68098.0,0.41341623]
[1730649631339,0.11928,68110.0,68108.0,0.073438]
[1730649631640,0.11928,68110.0,68104.0,0.3927]
[1730649631641,0.11928,68114.0,68105.0,0.01]
[1730649632133,0.11928,68114.0,68111.0,0.073434]
[1730649632335,0.0215655,68119.0,68118.0,0.073427]
[1730649632528,0.3608,68125.0,68118.0,0.073427]
[1730649632529,0.3608,68125.0,68124.0,0.073421]
[1730649632729,0.11928,68129.0,68126.0,0.073419]
[1730649633739,0.3608,68144.0,68126.0,0.073419]
[1730649633740,0.11928,68135.0,68126.0,0.073419]
[1730649633938,0.434199,68144.0,68126.0,0.073419]
[1730649633939,0.11928,68137.0,68126.0,0.073419]
[1730649634132,0.11928,68137.0,68136.0,0.073408]
[1730649634638,0.3608,68144.0,68141.0,0.073402]
[1730649634848,0.3608,68144.0,68141.0,0.073401]
[1730649635144,0.3608,68144.0,68142.0,0.073401]
[1730649635338,0.53072,68143.0,68142.0,0.073401]
[1730649635840,0.3608,68149.0,68131.0,0.073412]
[1730649636035,0.11928,68148.0,68143.0,0.0734]
[1730649636541,0.11928,68147.0,68143.0,0.0734]
[1730649636744,0.11928,68147.0,68144.0,0.073398]
[1730649637538,0.014,68148.0,68144.0,0.073398]
[1730649637741,0.11928,68147.0,68143.0,0.001]
[1730649637944,0.12028,68147.0,68144.0,0.001]
[1730649638137,0.073397,68146.0,68144.0,0.001]
[1730649638548,0.12028,68147.0,68144.0,0.001]
[1730649639146,0.13428,68147.0,68144.0,0.002]
[1730649639534,0.13328,68147.0,68146.0,0.073397]
[1730649640144,0.13328,68147.0,68144.0,0.002]
[1730649640344,0.11924,68146.0,68144.0,0.001]
[1730649641148,0.11924,68146.0,68145.0,0.073398]
[1730649641647,0.015,68147.0,68146.0,0.073397]
[1730649642339,0.001,68147.0,68146.0,0.073397]
[1730649642547,0.014,68147.0,68146.0,0.073397]
[1730649643058,0.014,68147.0,68146.0,0.074397]
[1730649643440,0.014,68147.0,68146.0,0.514637]
[1730649643745,0.014,68147.0,68146.0,0.074397]
[1730649643941,0.015,68147.0,68146.0,0.075397]
[1730649644953,0.015,68147.0,68146.0,0.002]
[1730649645269,0.088396,68147.0,68146.0,0.002]
[1730649646049,0.015,68147.0,68146.0,0.002]
[1730649646344,0.015,68147.0,68146.0,0.075397]
[1730649651154,0.015,68147.0,68146.0,0.002]
[1730649651341,0.088396,68147.0,68146.0,0.002]
[1730649652153,0.528636,68147.0,68146.0,1e-08]
[1730649652458,0.13424,68147.0,68146.0,1e-08]
[1730649652642,0.015,68147.0,68146.0,1e-08]
[1730649653050,0.015,68147.0,68146.0,0.07339701]
[1730649660252,0.3608,68155.0,68154.0,0.073388]
[1730649660448,0.1192,68161.0,68154.0,0.073388]
[1730649660652,0.1192,68161.0,68160.0,0.073382]
[1730649661146,0.1192,68161.0,68155.0,0.032]
[1730649661147,0.02363316,68164.0,68163.0,0.073379]
[1730649661553,0.3608,68180.0,68163.0,0.073379]
[1730649661755,0.434161,68180.0,68179.0,0.073362]
[1730649661945,0.1192,68185.0,68184.0,0.073355]
[1730649662257,0.1192,68185.0,68174.0,0.3608]
[1730649662258,0.3608,68186.0,68185.0,0.073355]
[1730649662452,0.38182057,68186.0,68185.0,0.073355]
[1730649663047,0.02102057,68186.0,68185.0,0.073355]
[1730649663245,0.1192,68189.0,68185.0,0.073355]
[1730649663445,0.073353,68188.0,68185.0,0.073355]